fUST/lending_fUST_20240327
["ID","MTS","AMOUNT","RATE_DAILY","PERIOD"]
[320747872,1711545034274,-209.51771292,0.00024642,2]
[320747873,1711545034283,-980.06,0.00024642,2]
[320747874,1711545034292,-500.0,0.00024642,2]
[320747875,1711545034301,-500.0,0.00024642,2]
[320747876,1711545034311,-2189.72,0.00024642,2]
[320747877,1711545034320,-710.03,0.00024642,2]
[320747878,1711545034330,-500.0,0.00024642,2]
[320747879,1711545034340,-500.0,0.00024642,2]
[320747880,1711545034350,-500.0,0.00024642,2]
[320747881,1711545034365,-500.0,0.00024642,2]
[320747882,1711545034375,-500.0,0.00024642,2]
[320747883,1711545034385,-581.28067015,0.00024642,2]
[320747884,1711545034395,-500.0,0.00024642,2]
[320747885,1711545034406,-500.0,0.00024642,2]
[320747886,1711545034416,-500.0,0.00024642,2]
[320747887,1711545034425,-1371.7,0.00024642,2]
[320747888,1711545034434,-500.0,0.00024642,2]
[320747889,1711545034443,-500.0,0.00024642,2]
[320747890,1711545034452,-500.0,0.00024642,2]
[320747891,1711545034462,-500.0,0.00024642,2]
[320747892,1711545034471,-500.0,0.00024642,2]
[320747893,1711545034480,-500.0,0.00024642,2]
[320747894,1711545034489,-762.49,0.00024642,2]
[320747895,1711545034498,-500.0,0.00024642,2]
[320747896,1711545034507,-500.0,0.00024642,2]
[320747897,1711545034516,-500.0,0.00024642,2]
[320747898,1711545034526,-500.0,0.00024642,2]
[320747899,1711545034535,-2611.52,0.00024642,2]
[320747900,1711545034544,-2705.59,0.00024642,2]
[320747901,1711545034554,-19422.66,0.00024642,2]
[320747902,1711545034563,-500.0,0.00024642,2]
[320747903,1711545034572,-500.0,0.00024643,2]
[320747904,1711545034581,-783.45023995,0.00024648,2]
[320747905,1711545034591,-182.04482103,0.00024648,2]
[320747906,1711545034600,-389.67599052,0.00024648,2]
[320747907,1711545034613,-187.60782747,0.00024648,2]
[320747908,1711545034622,-346.95241351,0.00024648,2]
[320747909,1711545034632,-166.666666,0.00024695,2]
[320747910,1711545034642,-200.0,0.00024837,30]
[320747911,1711545034650,-500.0,0.00024851,2]
[320747912,1711545034660,-3345.93171042,0.000249,7]
[320747913,1711545034669,-374.4218734,0.00024914,2]
[320747914,1711545034678,-356.83519894,0.00024988,2]
[320747915,1711545034688,-155.00620025,0.00025,2]
[320747916,1711545034698,-78000.0,0.00025,2]
[320747917,1711545034707,-356.83519894,0.00025165,2]
[320747918,1711545034716,-318.31479667,0.00025228,2]
[320747919,1711545034725,-20612.04626079,0.00025228,2]
[320747920,1711545034734,-776.50895432,0.00025228,2]
[320747921,1711545034743,-284.73468671,0.00025228,2]
[320747922,1711545034753,-3145.90433303,0.00025228,2]
[320747923,1711545034762,-250.59096891,0.00025228,2]
[320747924,1711545034771,-12156.68826531,0.00025228,2]
[320747925,1711545034781,-262.58759808,0.00025228,2]
[320747926,1711545034792,-3968.17956994,0.00025228,2]
[320747927,1711545034803,-1001.28628849,0.00025228,2]
[320747928,1711545034812,-1098.26853208,0.00025228,2]
[320747929,1711545034822,-620.87850708,0.00025228,2]
[320747930,1711545034833,-973.37695037,0.00025228,2]
[320747931,1711545034842,-2092.84915292,0.00025243,30]
[320747932,1711545034851,-356.83519894,0.00025443,2]
[320747933,1711545034862,-374.4218734,0.00025452,2]
[320747934,1711545034871,-374.4218734,0.00025784,2]
[320747935,1711545034880,-155.00620025,0.00026,2]
[320747936,1711545034889,-1002.0,0.00026,2]
[320747937,1711545034899,-151.88623829,0.00026439,2]
[320747938,1711545034909,-156.0,0.00026581,2]
[320747939,1711545034919,-356.83519894,0.00026766,2]
[320747940,1711545034928,-160.0,0.00026825,3]
[320747941,1711545034938,-374.4218734,0.00026883,2]
[320747942,1711545034948,-3731.97696372,0.00027,2]
[320747943,1711545034958,-2900.0,0.00027,5]
[320747944,1711545034967,-356.83519894,0.0002701,2]
[320747945,1711545034976,-160.0,0.00027165,4]
[320747946,1711545034986,-374.4218734,0.00027243,2]
[320747947,1711545034995,-1770.01307929,0.00027282,2]
[320747948,1711545035214,-31176.38457744,0.00027296,3]
[320747949,1711545035224,-2000.0,0.00027297,2]
[320747950,1711545035233,-402.0,0.000273,2]
[320747951,1711545035243,-174880.87456952,0.00027381,3]
[320747952,1711545035252,-500.0,0.00027381,2]
[320747953,1711545035262,-500.0,0.00027381,2]
[320747954,1711545035272,-500.0,0.00027381,2]
[320747955,1711545035281,-188.43558692,0.00027381,2]
[320747956,1711545035291,-1412.84,0.00027381,2]
[320747957,1711545035301,-500.0,0.00027381,2]
[320747958,1711545035311,-500.0,0.00027381,2]
[320747959,1711545035320,-500.0,0.00027381,2]
[320747960,1711545035330,-5596.52,0.00027381,2]
[320747961,1711545035340,-500.0,0.00027381,2]
[320747962,1711545035349,-541.6,0.00027381,2]
[320747963,1711545035360,-500.0,0.00027381,2]
[320747964,1711545035370,-500.0,0.00027381,2]
[320747965,1711545035380,-500.0,0.00027381,2]
[320747966,1711545035389,-591.73,0.00027381,2]
[320747967,1711545035399,-1415.42,0.00027381,2]
[320747968,1711545035409,-652.64,0.00027381,2]
[320747969,1711545035419,-500.0,0.00027381,2]
[320747970,1711545035430,-500.0,0.00027381,2]
[320747971,1711545035439,-500.0,0.00027381,2]
[320747972,1711545035449,-973.84,0.00027381,2]
[320747973,1711545035459,-1299.92,0.00027381,2]
[320747974,1711545035470,-609.67,0.00027381,2]
[320747975,1711545035480,-18112.22,0.00027381,2]
[320747976,1711545035490,-2664.62,0.00027381,2]
[320747977,1711545035500,-3451.94,0.00027381,2]
[320747978,1711545035510,-1038.65,0.00027381,2]
[320747979,1711545035520,-1169.8,0.00027381,2]
[320747980,1711545035531,-500.0,0.00027381,2]
[320747981,1711545035541,-500.0,0.00027381,2]
[320747982,1711545035552,-500.0,0.00027381,2]
[320747983,1711545035563,-1235.26,0.00027381,2]
[320747984,1711545035573,-3438.18,0.00027381,2]
[320747985,1711545035583,-500.0,0.00027381,2]
[320747986,1711545035593,-500.0,0.00027382,2]
[320747987,1711545035603,-500.0,0.00027382,2]
[320747988,1711545035617,-980.06,0.00027382,2]
[320747989,1711545035627,-500.0,0.00027382,2]
[320747990,1711545035636,-500.0,0.00027382,2]
[320747991,1711545035645,-2189.72,0.00027382,2]
[320747992,1711545035655,-195.22600965,0.00027382,2]
[320747993,1711545035968,-514.80399035,0.00027382,2]
[320747994,1711545035979,-500.0,0.00027382,2]
[320747995,1711545035990,-500.0,0.00027382,2]
[320747996,1711545036000,-500.0,0.00027382,2]
[320747997,1711545036013,-500.0,0.00027382,2]
[320747998,1711545036023,-500.0,0.00027382,2]
[320747999,1711545036033,-500.0,0.00027382,2]
[320748000,1711545036044,-500.0,0.00027382,2]
[320748001,1711545036054,-500.0,0.00027382,2]
[320748002,1711545036064,-1371.7,0.00027382,2]
[320748003,1711545036074,-500.0,0.00027382,2]
[320748004,1711545036084,-500.0,0.00027382,2]
[320748005,1711545036095,-500.0,0.00027382,2]
[320748006,1711545036106,-500.0,0.00027382,2]
[320748007,1711545036120,-500.0,0.00027382,2]
[320748008,1711545036131,-500.0,0.00027382,2]
[320748009,1711545036142,-762.49,0.00027382,2]
[320748010,1711545036152,-500.0,0.00027382,2]
[320748011,1711545036161,-500.0,0.00027382,2]
[320748012,1711545036171,-500.0,0.00027382,2]
[320748013,1711545036181,-500.0,0.00027382,2]
[320748014,1711545036192,-2611.52,0.00027382,2]
[320748015,1711545036202,-2705.59,0.00027382,2]
[320748016,1711545036212,-19422.66,0.00027382,2]
[320748017,1711545036222,-500.0,0.00027382,2]
[320748018,1711545036231,-220.64367856,0.00027383,2]
[320748019,1711545036242,-500.0,0.00027397,14]
[320748020,1711545036251,-502.03249242,0.00027397,14]
[320748021,1711545036261,-895.76967933,0.00027397,2]
[320748022,1711545036274,-342.91730343,0.00027397,2]
[320748023,1711545036283,-1238.68698276,0.00027397,2]
[320748024,1711545036407,-1238.68698276,0.00027397,2]
[320748025,1711545036420,-1238.68698276,0.00027397,2]
[320748026,1711545036430,-1238.68698276,0.00027397,2]
[320748027,1711545036440,-1238.68698276,0.00027397,2]
[320748028,1711545036450,-545.64778277,0.00027397,2]
[320748109,1711545038671,-302.2830785,0.00025,10]
[320748111,1711545038680,-693.03919999,0.00027397,2]
[320748114,1711545038690,-1238.68698276,0.00027397,2]
[320748117,1711545038699,-1238.68698276,0.00027397,2]
[320748120,1711545038709,-1238.68698276,0.00027397,2]
[320748122,1711545038718,-1238.68698276,0.00027397,2]
[320748124,1711545038727,-1238.68698276,0.00027397,2]
[320748127,1711545038737,-1238.68698276,0.00027397,2]
[320748130,1711545038746,-1238.68698276,0.00027397,2]
[320748133,1711545038756,-1238.68698276,0.00027397,2]
[320748136,1711545038765,-1238.68698276,0.00027397,2]
[320748139,1711545038774,-1238.68698276,0.00027397,2]
[320748141,1711545038784,-1238.68698276,0.00027397,2]
[320748144,1711545038794,-1238.68698276,0.00027397,2]
[320748147,1711545038803,-1238.68698276,0.00027397,2]
[320748149,1711545038813,-1238.68698276,0.00027397,2]
[320748153,1711545038822,-1238.68698276,0.00027397,2]
[320748155,1711545038831,-1238.68698276,0.00027397,2]
[320748158,1711545038840,-1238.68698276,0.00027397,2]
[320748159,1711545038850,-1238.68698276,0.00027397,2]
[320748161,1711545038861,-1238.68698276,0.00027397,2]
[320748163,1711545038870,-1238.68698276,0.00027397,2]
[320748165,1711545038879,-1238.68698276,0.00027397,2]
[320748166,1711545038888,-1238.68698276,0.00027397,2]
[320748168,1711545038897,-1238.68698276,0.00027397,2]
[320748170,1711545038907,-1238.68698276,0.00027397,2]
[320748172,1711545038916,-1238.68698276,0.00027397,2]
[320748173,1711545038926,-1238.68698276,0.00027397,2]
[320748175,1711545038935,-1238.68698276,0.00027397,2]
[320748177,1711545038945,-1238.68698276,0.00027397,2]
[320748179,1711545038954,-1238.68698276,0.00027397,2]
[320748180,1711545038963,-1238.68698276,0.00027397,2]
[320748182,1711545038973,-1238.68698276,0.00027397,2]
[320748184,1711545038984,-1238.68698276,0.00027397,2]
[320748186,1711545038993,-1238.68698276,0.00027397,2]
[320748188,1711545039004,-1238.68698276,0.00027397,2]
[320748189,1711545039013,-1238.68698276,0.00027397,2]
[320748191,1711545039023,-1238.68698276,0.00027397,2]
[320748193,1711545039034,-1238.68698276,0.00027397,2]
[320748195,1711545039043,-1238.68698276,0.00027397,2]
[320748197,1711545039053,-1238.68698276,0.00027397,2]
[320748198,1711545039062,-1238.68698276,0.00027397,2]
[320748200,1711545039071,-1238.68698276,0.00027397,2]
[320748202,1711545039081,-1238.68698276,0.00027397,2]
[320748204,1711545039090,-1238.68698276,0.00027397,2]
[320748205,1711545039099,-1238.68698276,0.00027397,2]
[320748207,1711545039109,-1238.68698276,0.00027397,2]
[320748209,1711545039119,-1238.68698276,0.00027397,2]
[320748211,1711545039128,-1238.68698276,0.00027397,2]
[320748212,1711545039137,-1238.68698276,0.00027397,2]
[320748214,1711545039146,-1238.68698276,0.00027397,2]
[320748216,1711545039157,-1216.16540125,0.00027397,2]
[320748218,1711545039166,-1216.16540125,0.00027397,2]
[320748219,1711545039175,-1216.16540125,0.00027397,2]
[320748221,1711545039184,-1216.16540125,0.00027397,2]
[320748223,1711545039195,-1216.16540125,0.00027397,2]
[320748225,1711545039204,-1216.16540125,0.00027397,2]
[320748227,1711545039214,-1216.16540125,0.00027397,2]
[320748229,1711545039223,-1216.16540125,0.00027397,2]
[320748230,1711545039232,-1216.16540125,0.00027397,2]
[320748232,1711545039241,-1216.16540125,0.00027397,2]
[320748234,1711545039251,-1216.16540125,0.00027397,2]
[320748236,1711545039261,-1216.16540125,0.00027397,2]
[320748237,1711545039270,-1216.16540125,0.00027397,2]
[320748239,1711545039279,-1216.16540125,0.00027397,2]
[320748241,1711545039288,-1216.16540125,0.00027397,2]
[320748243,1711545039297,-1216.16540125,0.00027397,2]
[320748245,1711545039307,-1216.16540125,0.00027397,2]
[320748246,1711545039316,-1216.16540125,0.00027397,2]
[320748248,1711545039325,-1216.16540125,0.00027397,2]
[320748250,1711545039334,-1216.16540125,0.00027397,2]
[320748252,1711545039343,-1216.16540125,0.00027397,2]
[320748253,1711545039352,-1216.16540125,0.00027397,2]
[320748255,1711545039364,-1216.16540125,0.00027397,2]
[320748257,1711545039373,-1216.16540125,0.00027397,2]
[320748259,1711545039383,-1216.16540125,0.00027397,2]
[320748260,1711545039392,-1216.16540123,0.00027397,2]
[320748262,1711545039401,-1216.16540123,0.00027397,2]
[320748264,1711545039410,-1216.16540123,0.00027397,2]
[320748266,1711545039419,-1216.16540123,0.00027397,2]
[320748268,1711545039428,-1216.16540123,0.00027397,2]
[320748269,1711545039438,-1216.16540123,0.00027397,2]
[320748271,1711545039447,-1216.16540123,0.00027397,2]
[320748273,1711545039457,-1216.16540123,0.00027397,2]
[320748275,1711545039466,-5165.56,0.00027397,7]
[320748277,1711545039475,-5165.56,0.00027397,7]
[320748278,1711545039484,-5165.56,0.00027397,7]
[320748280,1711545039493,-5174.0,0.00027397,2]
[320748282,1711545039503,-5174.0,0.00027397,2]
[320748284,1711545039512,-5174.0,0.00027397,2]
[320748286,1711545039520,-3143.0,0.00027397,120]
[320748287,1711545039530,-6282.0339705,0.00027397,2]
[320748368,1711545040641,-9631.17437463,0.00027397,2]
[320748371,1711545040653,-7691.40791547,0.00027397,2]
[320748373,1711545040662,-151.88623829,0.00027439,2]
[320748375,1711545040672,-6359.70584624,0.000275,2]
[320748377,1711545040683,-36674.1037174,0.000275,2]
[320748379,1711545040693,-160.0,0.00027505,5]
[320748381,1711545040702,-374.4218734,0.0002755,2]
[320748383,1711545040711,-356.83519894,0.00027843,2]
[320748385,1711545040721,-160.0,0.00027845,6]
[320748387,1711545040731,-374.4218734,0.00027865,2]
[320748389,1711545040740,-288.94103732,0.00028,2]
[320748391,1711545040749,-160.0,0.00028185,7]
[320748393,1711545040759,-151.88623828,0.00028439,2]
[320748395,1711545040768,-160.0,0.00028525,8]
[320748397,1711545040778,-1001.46639226,0.00028767,5]
[320748399,1711545040787,-30555.71156451,0.0002877,2]
[320748816,1711545044864,-4896.95,0.00021901,2]
[320748818,1711545044875,-1073.59724231,0.00024641,2]
[320748820,1711545044887,-2939.50417969,0.00024641,2]
[320748822,1711545044899,-883.848578,0.00024641,2]
[320748824,1711545044908,-3992.97328127,0.00027381,2]
[320749222,1711545048830,7984.66859131,0.000194,2]
[320754287,1711545909082,-500.0,0.00021901,2]
[320754288,1711545909122,-500.0,0.00021901,2]
[320754289,1711545909162,-500.0,0.00021901,2]
[320754290,1711545909202,-500.0,0.00021901,2]
[320754291,1711545909244,-500.0,0.00021901,2]
[320754292,1711545909285,-500.0,0.00021901,2]
[320754293,1711545909330,-500.0,0.00021901,2]
[320754294,1711545909371,-500.0,0.00021901,2]
[320754295,1711545909410,-500.0,0.00021901,2]
[320754296,1711545909447,-1137.43,0.00021901,2]
[320754297,1711545909484,-537.44353425,0.00021901,2]
[320754298,1711545909521,-500.0,0.00021901,2]
[320754299,1711545909558,-1023.57,0.00021901,2]
[320754300,1711545909598,-500.0,0.00021901,2]
[320754301,1711545909634,-500.0,0.00021901,2]
[320754302,1711545909671,-667.17,0.00021901,2]
[320754303,1711545909708,-500.0,0.00021901,2]
[320754304,1711545909745,-621.28,0.00021901,2]
[320754305,1711545909782,-500.0,0.00021901,2]
[320754306,1711545909822,-1916.0,0.00021901,2]
[320754307,1711545909859,-500.0,0.00021901,2]
[320754308,1711545909897,-563.5232225,0.00021901,2]
[320754309,1711545909938,-500.0,0.00021901,2]
[320754310,1711545909975,-500.0,0.00021901,2]
[320754311,1711545910012,-500.0,0.00021901,2]
[320754312,1711545910051,-1071.517137,0.00021901,2]
[320754313,1711545931487,688.44756833,0.000194,2]
[320754314,1711545931874,-1936.882863,0.00021901,2]
[320754315,1711545931919,-500.0,0.00021901,2]
[320754316,1711545931960,-1200.23,0.00021901,2]
[320754317,1711545932000,-500.0,0.00021901,2]
[320754318,1711545932041,-222.74389375,0.00021901,2]
[320754319,1711545932088,-2285.08,0.00021901,2]
[320754372,1711545946031,5172.41504345,0.00021682,2]
[320754375,1711546030389,-2092.84915292,0.00024,30]
[320754390,1711546042187,814.30169416,0.00024,30]
[320754391,1711546043887,-1278.54745876,0.00024,30]
[320754392,1711546061972,813.45254124,0.00024,30]
[320754393,1711546065596,-1279.39661168,0.00024,30]
[320754394,1711546086004,2092.84915292,0.00024,30]
[320754404,1711546103980,2092.84915292,0.00024,30]
[320754405,1711546119992,1783.58520589,0.00024,30]
[320754416,1711546205908,-4868.0682142,0.00021682,2]
[320754417,1711546205927,-500.0,0.00021901,2]
[320754418,1711546205948,-500.0,0.00021901,2]
[320754419,1711546205969,-12131.9317858,0.00021901,2]
[320754458,1711546233599,-3855.55400298,0.00021901,2]
[320754459,1711546233611,-639.38,0.00021901,2]
[320754461,1711546233622,-500.0,0.00021901,2]
[320754463,1711546233633,-166.666666,0.00021918,2]
[320754464,1711546233644,-157.85211395,0.00022142,2]
[320754465,1711546233655,-167.658928,0.00022143,2]
[320754466,1711546233666,-1033.89001828,0.00022168,2]
[320754468,1711546233681,-2671.02012728,0.00022168,2]
[320754469,1711546233691,-500.0,0.00022169,2]
[320754471,1711546233702,-500.0,0.00022169,2]
[320754474,1711546233713,-500.0,0.00022169,2]
[320754477,1711546233723,-500.0,0.00022169,2]
[320754479,1711546233733,-500.0,0.00022169,2]
[320754480,1711546233743,-500.0,0.00022169,2]
[320754481,1711546233754,-500.0,0.00022169,2]
[320754482,1711546233764,-500.0,0.00022169,2]
[320754483,1711546233775,-500.0,0.00022169,2]
[320754484,1711546233785,-1090.04,0.00022169,2]
[320754485,1711546233798,-1238.49,0.00022169,2]
[320754486,1711546233811,-500.0,0.00022169,2]
[320754487,1711546233822,-500.0,0.00022169,2]
[320754488,1711546233832,-980.92,0.00022169,2]
[320754489,1711546233846,-2795.53540455,0.00022169,2]
[320754505,1711546234008,-7131.983809,0.00022169,2]
[320754738,1711546238877,-2422.364,0.00022169,2]
[320754740,1711546238889,-367.71590853,0.00022169,2]
[320754924,1711546241139,-3170.16087792,0.00022169,2]
[320754926,1711546241150,-3020.45,0.00022169,2]
[320754928,1711546241162,-500.0,0.00022169,2]
[320754931,1711546241173,-595.39,0.00022169,2]
[320754933,1711546241184,-500.0,0.00022169,2]
[320754935,1711546241196,-500.0,0.00022169,2]
[320754937,1711546241207,-500.0,0.00022169,2]
[320754939,1711546241218,-1836.17,0.00022169,2]
[320754941,1711546241228,-500.0,0.00022169,2]
[320754943,1711546241249,-500.0,0.00022169,2]
[320754946,1711546241261,-877.79537572,0.0002217,2]
[320754948,1711546241272,-166.666666,0.00022431,2]
[320754949,1711546241284,-166.666666,0.00022944,2]
[320754951,1711546241296,-464.17065477,0.00023,2]
[320754953,1711546241307,-166.666666,0.00023456,2]
[320754956,1711546241319,-166.666666,0.00023969,2]
[320754958,1711546241330,-571.06,0.00023999,2]
[320754960,1711546241342,-852.11,0.00023999,2]
[320754962,1711546241358,-500.0,0.00023999,2]
[320754964,1711546241371,-517.76,0.00023999,2]
[320754966,1711546241384,-908.82,0.00023999,2]
[320754968,1711546241395,-533.46,0.00023999,2]
[320754970,1711546241407,-2331.54,0.00023999,2]
[320754972,1711546241422,-4322.5,0.00023999,2]
[320754974,1711546241433,-1080.85,0.00023999,2]
[320754976,1711546241444,-1236.24,0.00023999,2]
[320754978,1711546241458,-159.84348907,0.00023999,2]
[320754980,1711546241470,-1748.57839577,0.00024,2]
[320754982,1711546241485,-10727.99246088,0.00024,2]
[320755423,1711546246729,-877.79537572,0.0002243,2]
[320755425,1711546246739,-500.0,0.00023999,2]
[320755427,1711546246748,-157.85211395,0.00023999,2]
[320755429,1711546246757,-555.35688546,0.00023999,2]
[320755431,1711546246769,-3149.5532601,0.00023999,2]
[320755433,1711546246779,-5460.53021943,0.00024,2]
[320755436,1711546246790,-14007.5278219,0.00024,2]
[320755438,1711546246802,-557.67540991,0.00024,2]
[320757813,1711547064550,502.43786708,0.00023999,30]
[320757816,1711547333664,579.0974322,0.00020027,3]
[320757831,1711547377211,5174.37379796,0.00019827,2]
[320757832,1711547393213,3065.94018084,0.00019827,2]
[320758194,1711547443209,-684.30913271,0.00020119,2]
[320758196,1711547443218,-236.90220631,0.0002012,2]
[320758198,1711547443227,-156.44012682,0.00020121,2]
[320758200,1711547443237,-239.61530325,0.00020122,2]
[320758202,1711547443246,-1611.15839058,0.00020122,2]
[320758204,1711547443256,-867.43,0.000203,2]
[320758206,1711547443265,-167.658933,0.0002082,2]
[320758208,1711547443282,-339.0,0.0002112,2]
[320758210,1711547443295,-250.0,0.00021368,2]
[320758212,1711547443305,-197.0030957,0.00021488,2]
[320758214,1711547443315,-166.666666,0.00021918,2]
[320758216,1711547443325,-1057.24104998,0.00022,2]
[320758219,1711547443338,-1026.84587197,0.00022,2]
[320758577,1711547446688,500.0,0.00019827,2]
[320758804,1711547449239,5174.37379796,0.00019629,2]
[320759611,1711547457881,404.199696,0.00024,30]
[320759692,1711547458674,155.0356582,0.0002,2]
[320760699,1711547471013,4351.17913284,0.00019827,2]
[320760702,1711547471049,11642.33038776,0.00019827,2]
[320760719,1711547471213,2744.16989034,0.00019629,2]
[320760925,1711547478660,225.67277118,0.0002,2]
[320760933,1711547493007,14300.34052083,0.0002,2]
[320760944,1711547658349,33939.92081844,0.00025222,60]
[320760945,1711547679547,1224.52087019,0.0002,2]
[320760946,1711547685672,736.18161486,0.00025222,30]
[320761101,1711548473056,5000.0,0.0002111,4]
[320761228,1711548634712,-572.37098729,0.00021408,2]
[320761229,1711548634725,-292.42506282,0.00021408,2]
[320761230,1711548634734,-1674.80073876,0.00021408,2]
[320761231,1711548634746,-282.81081468,0.00021408,2]
[320761232,1711548634755,-780.7394247,0.00021409,2]
[320761233,1711548634764,-187.86952971,0.0002141,2]
[320761234,1711548634773,-2460.91634474,0.00021411,2]
[320761235,1711548634786,-1050.33784399,0.00021411,2]
[320761236,1711548634795,-155.10236756,0.00021412,2]
[320761237,1711548634804,-1611.15839058,0.00021412,2]
[320761238,1711548634813,-300.0,0.00021416,2]
[320761239,1711548634823,-167.658928,0.00021444,2]
[320761241,1711548634833,-3500.46169632,0.00021596,2]
[320761243,1711548634843,-606.9141934,0.00021909,2]
[320761245,1711548634852,-166.666666,0.00021918,2]
[320761247,1711548634864,-3704.91014556,0.00022,2]
[320761249,1711548634873,-157.85211395,0.00022169,2]
[320761251,1711548634889,-877.79537572,0.0002217,2]
[320761253,1711548634899,-166.666666,0.00022431,2]
[320761255,1711548634910,-309.9070279,0.00022796,2]
[320761257,1711548634921,-166.666666,0.00022944,2]
[320761259,1711548634931,-241.83291114,0.00023,2]
[320761261,1711548634942,-166.666666,0.00023456,2]
[320761263,1711548634954,-480.0,0.00023558,2]
[320761265,1711548634966,-166.666666,0.00023969,2]
[320761267,1711548634977,-198.65635422,0.00023995,2]
[320761275,1711548635558,-75.05513068,0.00023995,2]
[320761276,1711548635569,-248.07796473,0.00023996,2]
[320761277,1711548635579,-216.14106538,0.00023996,2]
[320761278,1711548635589,-245.94822385,0.00023996,2]
[320761279,1711548635599,-388.44263919,0.00023996,2]
[320761280,1711548635609,-258.09463406,0.00023996,2]
[320761281,1711548635619,-171.03314433,0.00023996,2]
[320761282,1711548635632,-686.05454832,0.00023996,2]
[320761283,1711548635642,-684.30913271,0.00023996,2]
[320761284,1711548635651,-156.44012682,0.00023996,2]
[320761285,1711548635661,-299.19634938,0.00023996,2]
[320761286,1711548635671,-30.90704055,0.00023996,2]
[320761383,1711548638396,-514.97761651,0.00023996,2]
[320761386,1711548638407,-500.0,0.00023996,2]
[320761389,1711548638418,-1308.56,0.00023996,2]
[320761391,1711548638429,-500.0,0.00023997,2]
[320761394,1711548638440,-163.89820349,0.00023997,2]
[320761397,1711548638453,-1887.43179651,0.00023997,2]
[320761400,1711548638464,-500.61957618,0.00023997,2]
[320761402,1711548638474,-500.0,0.00023997,2]
[320761405,1711548638484,-413.68611437,0.00023997,2]
[320761408,1711548638495,-500.11623501,0.00023997,2]
[320761412,1711548638505,-500.0,0.00023997,2]
[320761415,1711548638515,-500.0,0.00023997,2]
[320761416,1711548638525,-500.0,0.00023997,2]
[320761422,1711548638543,-500.0,0.00023997,2]
[320761424,1711548638558,-500.0,0.00023997,2]
[320761426,1711548638569,-515.34,0.00023997,2]
[320761428,1711548638579,-500.0,0.00023997,2]
[320761430,1711548638590,-500.0,0.00023997,2]
[320761432,1711548638600,-505.00884055,0.00023997,2]
[320761435,1711548638610,-500.0,0.00023997,2]
[320761438,1711548638620,-420.2708428,0.00023997,2]
[320761441,1711548638634,-500.0,0.00023997,2]
[320761444,1711548638645,-1267.99,0.00023997,2]
[320761447,1711548638655,-500.0,0.00023997,2]
[320761450,1711548638665,-500.0,0.00023997,2]
[320761453,1711548638674,-500.0,0.00023997,2]
[320761455,1711548638684,-500.0,0.00023997,2]
[320761457,1711548638694,-500.0,0.00023997,2]
[320761459,1711548638703,-155.31777968,0.00023997,2]
[320761461,1711548638712,-500.0,0.00023997,2]
[320761463,1711548638722,-500.0,0.00023997,2]
[320761465,1711548638732,-500.0,0.00023997,2]
[320761467,1711548638743,-3228.54,0.00023997,2]
[320761469,1711548638753,-500.0,0.00023997,2]
[320761471,1711548638763,-500.0,0.00023997,2]
[320761473,1711548638772,-506.81,0.00023997,2]
[320761475,1711548638782,-500.0,0.00023997,2]
[320761477,1711548638792,-500.0,0.00023997,2]
[320761479,1711548638801,-3311.6,0.00023997,2]
[320761481,1711548638811,-1155.31,0.00023997,2]
[320761483,1711548638821,-1971.06396689,0.00023997,2]
[320761485,1711548638834,-473.40323931,0.00023997,2]
[320761487,1711548638847,-2719.0227938,0.00023997,2]
[320761489,1711548638856,-500.0,0.00023997,2]
[320761491,1711548638866,-500.0,0.00023997,2]
[320761493,1711548638875,-500.0,0.00023997,2]
[320761494,1711548638888,-530.85,0.00023997,2]
[320761495,1711548638897,-500.0,0.00023997,2]
[320761496,1711548638906,-500.0,0.00023997,2]
[320761497,1711548638915,-500.0,0.00023997,2]
[320761499,1711548638924,-500.0,0.00023997,2]
[320761501,1711548638933,-500.0,0.00023997,2]